bitfinex/quotes_ETHUSD_20250604
["timestamp","ask_amount","ask_price","bid_price","bid_amount"]
[1749054157349,5.60346913,2654.0,2653.9,16.415]
[1749054157694,7.42133676,2654.0,2653.9,16.415]
[1749054157886,7.42133676,2654.0,2653.9,8.126]
[1749054158094,7.42133676,2654.0,2653.9,16.415]
[1749054159091,7.42133676,2654.0,2653.9,8.126]
[1749054159263,7.42133676,2654.0,2653.9,9.93]
[1749054159264,15.30133676,2654.0,2653.9,9.93]
[1749054161302,15.30133676,2654.0,2652.1,0.02]
[1749054161303,0.55,2653.7,2652.1,0.02]
[1749054161456,13.21693676,2654.0,2652.1,0.02]
[1749054161457,7.07520713,2652.9,2652.2,16.416]
[1749054161656,7.07520713,2652.9,2652.3,16.0]
[1749054162153,7.07520713,2652.9,2652.2,16.416]
[1749054162459,8.69590713,2652.9,2652.3,16.0]
[1749054162781,0.55,2652.8,2652.5,16.0]
[1749054163091,0.55,2652.8,2652.6,8.289]
[1749054163277,0.55,2652.8,2652.2,8.127]
[1749054163478,0.55,2652.8,2652.7,1.795]
[1749054163678,7.62520713,2652.8,2652.7,8.28]
[1749054163885,8.54979784,2652.8,2652.7,8.28]
[1749054164251,1.5195,2652.7,2652.2,8.127]
[1749054164465,1.5195,2652.7,2652.3,8.281]
[1749054164466,7.07520713,2652.5,2652.3,8.281]
[1749054164968,1.5195,2652.7,2652.3,8.281]
[1749054166180,7.07520713,2653.0,2652.3,8.281]
[1749054166992,1.5327,2653.2,2652.4,13.035878]
[1749054167294,1.5327,2653.2,2652.5,2.82002]
[1749054167502,1.5327,2653.2,2652.6,8.128]
[1749054167673,1.5327,2653.2,2652.7,6.486]
[1749054167867,2.39349071,2653.2,2652.7,6.486]
[1749054168358,0.55,2652.9,2652.8,1.795]
[1749054168557,0.55,2652.9,2652.8,8.281]
[1749054168911,7.07520713,2653.0,2652.8,8.281]
[1749054169205,2.39349071,2653.2,2652.8,8.281]
[1749054169594,0.62136585,2653.1,2652.8,8.281]
[1749054170460,8.60790713,2653.2,2652.8,8.281]
[1749054170664,8.60790713,2653.2,2652.6,8.128]
[1749054170967,7.07520713,2652.9,2652.7,1.795]
[1749054171168,7.07520713,2652.9,2652.6,8.128]
[1749054171169,2.196,2652.7,2652.6,8.128]
[1749054171401,2.196,2652.7,2652.6,9.923]
[1749054171402,9.27120713,2652.7,2652.6,9.923]
[1749054171702,10.19832784,2652.7,2652.6,9.923]
[1749054173174,3.12312071,2652.7,2652.6,9.923]
[1749054173495,9.27120713,2652.7,2652.6,9.923]
[1749054178131,9.27120713,2652.7,2652.6,9.924]
[1749054178332,9.27120713,2652.7,2652.6,8.128]
[1749054178493,13.34027626,2652.7,2652.6,8.128]
[1749054178690,13.34027626,2652.7,2652.6,9.924]
[1749054178892,2.1066,2652.6,2652.1,0.02]
[1749054179118,0.55,2652.4,2652.2,9.927]
[1749054180237,21.13087626,2652.3,2650.1,0.02]
[1749054180455,7.07520713,2651.8,2651.2,8.284]
[1749054181449,1.5566,2652.2,2651.3,14.419708]
[1749054181598,1.5566,2652.2,2651.4,10.0]
[1749054181793,4.38393944,2652.3,2651.5,16.0]
[1749054182041,7.07520713,2652.0,2651.6,8.284]
[1749054184123,7.07520713,2652.0,2651.7,8.285]
[1749054184434,7.07520713,2652.0,2651.7,1.796]
[1749054184949,2.1499,2651.9,2651.7,1.796]
[1749054185110,2.1499,2651.9,2650.3,3.39583222]
[1749054185111,4.06906913,2651.6,2650.6,16.0]
[1749054185312,4.06906913,2651.6,2651.3,16.0]
[1749054185626,4.06906913,2651.5,2651.3,16.0]
[1749054185833,4.06906913,2651.5,2651.4,4.041698]
[1749054186042,4.06906913,2651.5,2651.4,3.456793]
[1749054186248,4.06906913,2651.5,2651.4,19.456793]
[1749054186627,4.06906913,2651.5,2651.4,19.96071051]
[1749054187513,4.06906913,2651.5,2651.4,33.14071051]
[1749054188253,4.06906913,2651.5,2651.4,32.636793]
[1749054188849,4.06906913,2651.5,2651.4,31.565618]
[1749054189355,4.06906913,2651.5,2651.4,38.053618]
[1749054189559,4.06906913,2651.5,2651.4,35.668]
[1749054190225,4.06906913,2651.5,2651.4,27.384]
[1749054190650,4.06906913,2651.5,2651.4,35.668]
[1749054191328,4.06906913,2651.5,2651.4,39.529243]
[1749054191543,4.06906913,2651.5,2651.4,33.041243]
[1749054191742,4.06906913,2651.5,2651.4,35.668]
[1749054192058,4.06906913,2651.5,2651.4,29.18]
[1749054192245,4.06906913,2651.5,2651.4,35.668]
[1749054192446,4.06906913,2651.5,2651.4,11.384]
[1749054192648,4.47597604,2651.5,2651.4,13.18]
[1749054192955,6.67397604,2651.5,2651.4,19.668]
[1749054193836,6.12397604,2651.5,2651.4,19.668]
[1749054194042,4.06906913,2651.5,2651.4,19.668]
[1749054198864,4.06906913,2651.5,2651.4,13.18]
[1749054199065,4.06906913,2651.5,2651.4,19.668]
[1749054200569,4.06906913,2651.5,2651.4,13.18]
[1749054200909,4.06906913,2651.5,2651.4,19.668]
[1749054201046,5.18349676,2651.5,2651.4,19.668]
[1749054201388,6.74599676,2651.5,2651.4,19.668]
[1749054201544,4.06906913,2651.3,2651.1,0.02]
[1749054201744,4.06906913,2651.3,2651.2,16.417]
[1749054202578,11.14427626,2651.3,2651.2,16.417]
[1749054203644,13.36939665,2651.3,2651.2,9.929]
[1749054203843,13.36939665,2651.3,2651.2,16.417]
[1749054204239,11.14427626,2651.3,2651.2,16.417]
[1749054204893,4.06906913,2651.3,2651.2,8.284]
[1749054206380,4.06906913,2651.3,2650.9,13.442144]
[1749054207213,4.06906913,2651.3,2650.9,5.024782]
[1749054207416,4.06906913,2651.3,2650.7,18.385621]
[1749054207716,4.06906913,2651.3,2651.2,10.0]
[1749054208008,4.06906913,2651.3,2651.2,6.488]
[1749054212127,8.69040713,2652.1,2651.4,16.0]
[1749054212128,4.06906913,2651.7,2651.4,16.0]
[1749054212327,4.06906913,2651.7,2651.6,28.717066]
[1749054212485,4.06906913,2651.7,2651.6,30.513066]
[1749054212692,4.06906913,2651.7,2651.6,20.482566]
[1749054212912,4.06906913,2651.7,2651.6,18.686566]
[1749054213437,4.06906913,2651.7,2651.6,11.688771]
[1749054215446,4.06906913,2651.7,2651.6,3.41413679]
[1749054215747,4.06906913,2651.7,2651.6,6.488427]
[1749054215888,4.06906913,2651.7,2651.6,5.896107]
[1749054216288,4.06906913,2651.7,2651.6,28.382107]
[1749054217433,4.06906913,2651.7,2651.6,41.562107]
[1749054219136,1.5876,2651.9,2651.6,13.18]
[1749054219333,1.5876,2651.9,2651.6,19.665]
[1749054223865,1.5876,2651.9,2651.6,11.385]
[1749054224038,9.28410713,2651.7,2651.6,11.385]
[1749054224354,4.06906913,2651.2,2650.2,28.994397]
[1749054224649,4.06906913,2651.2,2650.7,16.0]
[1749054224835,4.06906913,2651.1,2650.9,17.517379]
[1749054225042,4.06906913,2651.1,2651.0,20.659461]
[1749054225236,4.06906913,2651.1,2651.0,21.16337851]
[1749054225750,4.06906913,2651.1,2651.0,20.659461]
[1749054226334,4.06906913,2651.1,2651.0,19.37037851]
[1749054226640,4.06906913,2651.1,2651.0,24.277]
[1749054226841,4.06906913,2651.1,2651.0,24.278]
[1749054227218,4.06906913,2651.1,2651.0,16.0]
[1749054227418,4.06906913,2651.1,2651.0,24.277]
[1749054227620,4.06906913,2651.1,2651.0,26.375]
[1749054227832,4.06906913,2651.1,2651.0,24.277]
[1749054228150,4.06906913,2651.1,2651.0,21.36067]
[1749054228353,4.06906913,2651.1,2651.0,26.63603]
[1749054228846,4.06906913,2651.1,2651.0,20.15203]
[1749054229048,4.06906913,2651.1,2651.0,28.044833]
[1749054229352,4.06906913,2651.1,2651.0,24.277]
[1749054230265,4.06906913,2651.1,2651.0,27.301356]
[1749054231043,4.06906913,2651.1,2651.0,19.024356]
[1749054231278,4.06906913,2651.1,2651.0,26.853316]
[1749054231624,4.06906913,2651.1,2651.0,26.420875]
[1749054234386,4.06906913,2651.1,2651.0,11.474014]
[1749054234683,4.06906913,2651.1,2651.0,10.396405]
[1749054235027,4.06906913,2651.1,2651.0,8.277]
[1749054235632,4.06906913,2651.1,2651.0,12.208488]
[1749054235895,4.06906913,2651.1,2651.0,8.277]
[1749054237268,5.58446913,2651.1,2651.0,1.794]
[1749054237435,6.14291604,2651.1,2651.0,1.794]
[1749054237641,6.14291604,2651.1,2651.0,8.277]
[1749054238238,5.58446913,2651.1,2651.0,8.277]
[1749054242586,4.06906913,2651.0,2650.4,10.579817]
[1749054242888,4.06906913,2651.0,2650.5,8.277]
[1749054243067,4.06906913,2650.9,2650.3,8.132]
[1749054243271,4.06906913,2650.9,2650.6,1.794]
[1749054243459,4.06906913,2650.8,2650.7,8.277]
[1749054244340,4.06906913,2650.8,2650.3,8.132]
[1749054244543,4.06906913,2650.8,2650.7,1.794]
[1749054244856,4.06906913,2650.8,2650.7,8.277]
[1749054246361,4.06906913,2650.8,2650.3,8.132]
[1749054246565,4.06906913,2650.8,2650.7,1.794]
[1749054246824,5.39862073,2650.8,2650.7,1.794]
[1749054246984,0.55,2650.6,2650.3,8.132]
[1749054247492,9.12850713,2650.4,2650.3,8.132]
[1749054247665,9.12850713,2650.4,2650.3,9.926]
[1749054248391,2.0533,2650.4,2650.3,9.926]
[1749054248712,1.70863,2650.4,2650.3,9.926]
[1749054249087,2.25863,2650.4,2650.3,16.408]
[1749054249468,2.25863,2650.4,2650.3,8.132]
[1749054249904,2.25863,2650.4,2650.1,0.02]
[1749054250218,0.75533,2650.4,2650.3,9.929]
[1749054250419,0.55,2650.6,2650.3,1.794]
[1749054250718,6.23876913,2650.4,2650.3,1.794]
[1749054251709,5.68876913,2650.4,2650.3,1.794]
[1749054252341,13.56876913,2650.4,2650.3,1.794]
[1749054253790,13.56876913,2650.4,2650.3,8.277]
[1749054254001,2.2097,2650.2,2650.1,0.02]
[1749054254200,13.35397626,2650.2,2650.1,1.811]
[1749054255328,5.72876913,2650.2,2650.1,1.811]
[1749054255488,6.27876913,2650.2,2650.1,8.293]
[1749054256102,5.72876913,2650.2,2650.1,8.293]
[1749054256285,7.29608581,2650.2,2650.1,8.293]
[1749054256490,5.72876913,2650.2,2650.1,8.293]
[1749054256789,4.06906913,2650.2,2650.1,8.293]
[1749054257249,4.06906913,2650.2,2649.2,30.0]
[1749054257439,4.06906913,2650.2,2649.5,16.0]
[1749054257594,4.06906913,2650.2,2649.4,13.90713]
[1749054257595,4.06906913,2650.2,2649.4,46.0]
[1749054257795,4.06906913,2650.2,2649.5,27.603836]
[1749054257998,4.06906913,2650.2,2649.4,16.0]
[1749054258524,4.06906913,2650.2,2649.6,16.0]
[1749054258827,4.06906913,2650.2,2649.6,30.493057]
[1749054259026,4.06906913,2650.2,2649.6,16.0]
[1749054259227,7.82243837,2650.2,2649.8,16.0]
[1749054259429,3.75336924,2650.2,2649.8,16.0]
[1749054260015,11.63336924,2650.4,2650.0,10.0]
[1749054260333,3.75336924,2650.2,2649.8,16.0]
[1749054261151,11.63336924,2650.4,2649.8,16.0]
[1749054261554,11.63336924,2650.4,2649.7,8.274]
[1749054261866,11.63336924,2650.4,2649.8,1.791]
[1749054262067,7.88,2650.4,2649.8,1.791]
[1749054262281,11.63336924,2650.4,2649.8,1.791]
[1749054263146,11.63336924,2650.4,2649.9,6.482]
[1749054263927,3.75336924,2650.2,2649.9,6.482]
[1749054264382,3.75336924,2650.2,2649.4,16.0]
[1749054264665,4.06906913,2650.1,2649.6,16.0]
[1749054264840,4.06906913,2650.1,2649.1,16.0]
[1749054265046,4.06906913,2650.1,2649.4,16.0]
[1749054265248,4.06906913,2650.1,2649.6,16.0]
[1749054265434,4.06906913,2650.1,2649.2,1.791]
[1749054265637,4.06906913,2650.1,2649.6,16.0]
[1749054265845,4.06906913,2650.1,2649.4,16.0]
[1749054266450,4.06906913,2650.1,2649.6,16.0]
[1749054266776,4.06906913,2650.1,2649.7,8.273]
[1749054266977,4.06906913,2650.1,2649.8,10.202168]
[1749054267138,4.06906913,2650.1,2649.8,10.0]
[1749054267340,4.06906913,2650.1,2649.9,8.272]
[1749054267562,4.06906913,2650.1,2650.0,8.137]
[1749054268287,4.06906913,2650.0,2649.9,1.791]
[1749054268443,9.44113837,2650.0,2649.9,16.409]
[1749054269432,9.44113837,2650.0,2649.9,8.137]
[1749054269737,9.44113837,2650.0,2649.9,16.409]
[1749054270110,9.44113837,2650.0,2649.9,9.928]
[1749054270279,9.44113837,2650.0,2649.9,16.409]
[1749054271676,5.68776913,2650.0,2649.9,16.409]
[1749054271879,4.06906913,2650.0,2649.9,32.409]
[1749054272078,4.06906913,2650.0,2649.9,50.93289041]
[1749054272407,0.02,2650.9,2650.1,30.0]
[1749054272408,4.06906913,2650.3,2650.1,30.0]
[1749054272599,4.06906913,2650.8,2650.5,16.0]
[1749054272783,4.06906913,2650.8,2650.7,7.666304]
[1749054274232,4.06906913,2650.8,2650.7,23.666304]
[1749054277352,4.06906913,2650.8,2650.7,30.145304]
[1749054277553,4.06906913,2650.8,2650.7,40.072304]
[1749054277922,4.06906913,2650.8,2650.7,33.593304]
[1749054278113,4.06906913,2650.8,2650.7,40.071304]
[1749054280956,4.06906913,2650.8,2650.7,9.927]
[1749054281172,11.56908835,2650.8,2650.7,9.927]
[1749054281387,11.56908835,2650.8,2650.7,16.404]
[1749054282282,12.11908835,2650.8,2650.7,16.404]
[1749054282577,12.11908835,2650.8,2650.7,9.927]
[1749054282774,12.11908835,2650.8,2650.7,16.404]
[1749054282978,12.11908835,2650.8,2648.7,19.286164]
[1749054282979,1.5242,2650.4,2648.7,19.286164]
[1749054283277,1.5242,2650.4,2647.3,1.136109]
[1749054283278,1.5242,2650.4,2649.0,16.0]
[1749054283441,1.5242,2650.4,2649.4,16.0]
[1749054283638,1.5242,2650.4,2649.6,26.0]
[1749054283846,0.86153123,2650.3,2649.8,10.0]
[1749054284152,1.6187,2650.1,2649.9,8.265]
[1749054284360,1.6187,2650.1,2650.0,16.401]
[1749054285780,1.6187,2650.1,2650.0,9.924]
[1749054285955,1.6187,2650.1,2650.0,16.401]
[1749054286157,2.57583435,2650.1,2650.0,16.401]
[1749054286360,1.6187,2650.1,2650.0,16.401]
[1749054286908,2.1687,2650.1,2650.0,8.136]
[1749054287199,2.1687,2650.1,2650.0,9.924]
[1749054287448,20.69468123,2650.1,2650.0,9.924]
[1749054288106,32.64375036,2650.1,2650.0,9.924]
[1749054288389,16.64375036,2650.1,2650.0,9.924]
[1749054289714,16.09375036,2650.1,2650.0,9.924]
[1749054290207,16.09375036,2650.1,2650.0,16.401]
[1749054292595,16.09375036,2650.1,2650.0,9.926]
[1749054293317,13.56776913,2650.1,2650.0,9.926]
[1749054293517,11.94906913,2650.1,2650.0,9.926]
[1749054293662,11.94906913,2650.1,2650.0,16.403]
[1749054297530,5.29540041,2650.5,2650.0,16.403]
[1749054298486,1.5419,2650.5,2650.0,16.403]
[1749054298689,5.33350041,2650.7,2650.0,16.403]
[1749054298923,5.96474114,2650.7,2650.0,16.403]
[1749054300021,3.75350041,2650.5,2650.1,8.264]
[1749054300724,3.75350041,2650.5,2650.2,8.264]
[1749054301102,5.33350041,2650.7,2650.2,8.264]
[1749054302025,3.77350041,2650.9,2650.2,8.264]
[1749054302182,3.75350041,2650.7,2650.2,8.264]
[1749054303593,0.55,2650.2,2650.0,8.138]
[1749054303798,2.1313,2650.2,2650.1,1.788]
[1749054305034,1.5813,2650.2,2650.1,8.263]
[1749054306294,0.55,2650.1,2650.0,8.138]
[1749054306515,9.19268273,2650.1,2650.0,9.926]
[1749054307027,23.64758273,2650.1,2650.0,9.925]
[1749054307419,25.17518273,2650.1,2650.0,9.925]
[1749054307618,27.77948983,2650.1,2650.0,9.925]
[1749054307919,4.6819071,2650.1,2650.0,9.925]
[1749054308123,2.0776,2650.1,2650.0,9.925]
[1749054308430,2.0776,2650.1,2650.0,8.137]
[1749054308632,2.0776,2650.1,2650.0,9.926]
[1749054309533,1.5276,2650.1,2650.0,9.926]
[1749054312825,8.63068273,2650.3,2650.0,8.262]
[1749054313050,9.548751,2650.3,2650.0,8.262]
[1749054313613,8.015651,2650.3,2650.0,8.262]
[1749054313850,4.06906913,2650.2,2650.0,8.262]
[1749054314166,4.06906913,2650.1,2650.0,8.262]
[1749054314372,4.06906913,2650.1,2650.0,16.613889]
[1749054314513,4.06906913,2650.1,2650.0,14.567989]
[1749054314868,5.81397604,2650.1,2650.0,1.785]
[1749054315067,5.26397604,2650.1,2650.0,1.785]
[1749054315718,5.26397604,2650.1,2650.0,8.259]
[1749054316612,5.81397604,2650.1,2650.0,8.259]
[1749054316869,0.55,2650.0,2648.8,30.0]
[1749054317029,0.6363976,2649.9,2649.0,42.674137]
[1749054317233,7.64758273,2650.0,2649.2,16.0]
[1749054317431,12.36155877,2650.1,2649.3,14.613]
[1749054317633,12.36155877,2650.1,2649.4,6.474]
[1749054317871,12.36155877,2650.1,2649.5,1.785]
[1749054318036,2.0732,2650.0,2649.3,8.139]
[1749054318238,9.17078273,2649.5,2649.4,8.259]
[1749054318445,13.23985186,2649.5,2649.4,8.259]
[1749054318659,12.68985186,2649.5,2649.3,8.139]
[1749054318961,12.49906913,2649.4,2649.3,8.139]
[1749054319167,14.61105432,2649.4,2649.3,9.924]
[1749054319370,0.44606723,2651.0,2649.8,1.67239052]
[1749054319516,7.09758273,2651.8,2650.3,19.887603]
[1749054319718,0.31487031,2650.8,2650.7,10.0]
[1749054319933,0.31487031,2650.8,2650.7,6.181054]
[1749054320264,0.31487031,2650.8,2649.2,1.47765008]
[1749054320265,1.5776,2650.7,2650.4,6.181054]
[1749054320467,0.55,2650.6,2650.4,6.181054]
[1749054320668,7.09758273,2650.6,2650.4,6.181054]
[1749054321121,7.09758273,2650.6,2650.5,6.529]
[1749054321322,7.11758273,2650.9,2650.6,6.181054]
[1749054321536,7.829341,2650.9,2650.6,6.181054]
[1749054322264,7.11758273,2650.9,2650.6,6.181054]
[1749054324363,0.55,2650.8,2649.6,6.181054]
[1749054324564,7.09758273,2650.2,2649.5,10.0]
[1749054324870,7.09758273,2650.2,2649.8,6.181054]
[1749054325434,8.68178273,2650.7,2649.9,10.0]
[1749054325667,7.11758273,2650.9,2650.1,10.0]
[1749054325976,7.992111,2650.9,2650.3,6.181054]
[1749054326272,7.09758273,2650.6,2650.5,6.181054]
[1749054326429,7.09758273,2650.6,2650.5,6.522]
[1749054326635,7.09758273,2650.6,2650.5,12.703054]
[1749054327368,7.09758273,2650.6,2649.9,16.0]
[1749054327573,7.09758273,2650.3,2650.1,6.181054]
[1749054327748,0.55,2650.2,2648.7,0.3164122]
[1749054328081,7.09758273,2649.9,2649.2,2.477686]
[1749054328245,7.09758273,2649.9,2649.3,6.521]
[1749054328447,7.09758273,2649.9,2649.4,17.785]
[1749054329089,7.09758273,2649.9,2649.4,1.785]
[1749054329289,7.09758273,2649.9,2649.5,6.518]
[1749054329473,0.55,2650.2,2649.5,6.518]
[1749054329689,7.30432273,2650.2,2649.6,12.51677]
[1749054329887,7.09758273,2650.2,2649.5,6.518]
[1749054330203,7.09758273,2650.2,2649.7,10.0]
[1749054330362,7.09758273,2650.2,2649.6,10.0]
[1749054330790,7.09758273,2650.2,2649.7,10.0]
[1749054331175,7.09758273,2650.2,2649.6,2.475648]
[1749054331372,7.09758273,2650.2,2649.7,10.0]
[1749054331573,7.09758273,2650.2,2649.6,14.200648]
[1749054331822,8.61498273,2650.6,2649.7,10.0]
[1749054331979,9.476481,2650.6,2649.9,10.0]
[1749054332185,9.476481,2650.6,2650.0,1.785]
[1749054332418,9.476481,2650.6,2650.1,6.512]
[1749054332763,0.55,2650.2,2648.8,30.0]
[1749054332962,7.09758273,2649.8,2648.9,1.785]
[1749054333268,7.09758273,2649.8,2649.0,6.527]
[1749054333465,7.967101,2649.8,2649.0,6.527]
[1749054333665,7.09758273,2649.5,2649.1,6.524]
[1749054334925,7.09758273,2649.7,2649.1,6.524]
[1749054335123,0.55,2649.8,2649.1,6.524]
[1749054335323,2.0683,2649.5,2649.2,1.785]
[1749054335528,7.09758273,2649.3,2649.2,1.785]
[1749054335873,0.55,2649.2,2648.1,5.63639118]
[1749054336072,4.06906913,2649.1,2648.8,8.319]
[1749054337512,4.06906913,2649.1,2648.9,8.139]
[1749054337825,4.06906913,2649.1,2648.9,14.668]
[1749054338170,4.06906913,2649.1,2648.9,8.139]
[1749054338367,4.06906913,2649.1,2649.0,6.527]
[1749054338885,5.35077699,2649.1,2648.9,8.139]
[1749054339091,4.06906913,2649.1,2649.0,1.785]
[1749054339384,4.06906913,2649.1,2649.0,8.312]
[1749054342373,4.06906913,2649.1,2649.0,1.785]
[1749054342773,4.06906913,2649.1,2649.0,8.307]
[1749054343073,4.06906913,2649.1,2649.0,8.31]
[1749054344572,4.06906913,2649.1,2649.0,1.785]
[1749054344773,4.06906913,2649.1,2649.0,8.307]
[1749054350728,4.06906913,2649.1,2649.0,1.785]
[1749054350929,4.06906913,2649.1,2649.0,8.286]
[1749054351473,4.06906913,2649.1,2649.0,8.313]
[1749054352555,5.41878604,2649.1,2649.0,1.813]
[1749054352696,5.41878604,2649.1,2649.0,8.307]
[1749054353717,5.41878604,2649.1,2648.9,8.139]
[1749054353898,5.41878604,2649.1,2649.0,8.303]
[1749054354237,4.06906913,2648.8,2648.1,5.63639118]
[1749054354434,6.63357604,2648.8,2648.7,16.7594122]
[1749054355628,6.08357604,2648.8,2648.7,16.7554122]
[1749054355857,5.67666913,2648.8,2648.7,16.7554122]
[1749054356217,4.06906913,2648.8,2648.7,16.7554122]
[1749054359147,4.06906913,2648.8,2648.7,10.2694122]
[1749054359456,4.06906913,2648.8,2648.7,16.7474122]
[1749054359936,5.72616913,2648.8,2648.7,8.4564122]
[1749054360260,6.13307604,2648.8,2648.7,16.7574122]
[1749054360441,5.72616913,2648.8,2648.7,16.7574122]
[1749054362977,3.75265693,2648.7,2648.1,8.89239118]
[1749054363124,3.75265693,2648.7,2648.2,16.435]
[1749054363475,7.64758273,2648.4,2648.1,5.63639118]
[1749054363771,2.134,2648.2,2647.3,0.005]
[1749054363976,0.55,2648.2,2647.4,10.0]
[1749054364156,0.55,2648.2,2647.5,6.506]
[1749054365153,9.662541,2648.3,2647.7,10.0]
[1749054365154,2.56495827,2648.3,2647.7,10.0]
[1749054365359,0.55,2648.0,2647.7,6.518]
[1749054365543,1.31475827,2647.9,2647.8,6.518]
[1749054365747,1.31475827,2647.9,2647.7,6.518]
[1749054365927,7.09758273,2647.8,2647.3,0.005]
[1749054366132,1.5493,2647.7,2647.4,6.516]
[1749054366382,0.55,2647.9,2647.3,0.005]
[1749054366757,0.55,2647.9,2647.4,6.518]
[1749054367477,0.55,2647.9,2647.5,9.956]
[1749054367676,1.46968827,2647.9,2647.5,9.956]
[1749054368999,3.75265693,2647.8,2647.5,9.956]
[1749054369844,3.75265693,2647.8,2647.6,1.814]
[1749054370040,4.30265693,2647.8,2646.3,7.09758273]
[1749054370291,0.55,2647.7,2646.5,30.0]
[1749054370598,3.75265693,2647.8,2646.7,14.591749]
[1749054370806,3.75265693,2647.8,2646.7,9.922703]
[1749054370997,3.75265693,2647.8,2646.7,8.423389]
[1749054371208,3.75265693,2647.8,2647.0,10.0]
[1749054371410,3.75265693,2647.8,2647.1,1.814]
[1749054371610,0.46723452,2647.7,2647.2,6.509]
[1749054371917,3.75265693,2647.8,2647.2,6.509]
[1749054373283,10.85023966,2647.8,2647.2,6.509]
[1749054374771,16.0,2647.7,2646.8,5.262087]
[1749054374972,16.0,2647.7,2646.4,30.0]
[1749054375172,16.0,2647.7,2646.5,33.40065812]
[1749054375409,3.75265693,2647.8,2646.7,22.40382]
[1749054375615,3.75265693,2647.8,2646.7,20.519221]
[1749054375975,3.75265693,2647.8,2646.9,24.780705]
[1749054376308,3.75265693,2647.8,2646.9,14.780705]
[1749054376815,1.5493,2648.0,2646.9,14.780705]
[1749054376816,3.75265693,2647.7,2646.9,14.780705]
[1749054377109,3.75265693,2647.7,2647.2,10.0]
[1749054377313,3.75265693,2647.6,2647.3,6.495]
[1749054377532,3.75265693,2647.6,2647.4,8.145]
[1749054377730,3.75265693,2647.6,2647.5,9.1155]
[1749054379125,3.75265693,2647.6,2647.5,25.1105]
[1749054380095,3.75265693,2647.6,2647.5,27.425963]
[1749054380318,3.75265693,2647.6,2647.5,25.1105]
[1749054380633,3.75265693,2647.6,2647.5,15.705655]
[1749054381046,3.75265693,2647.6,2647.5,9.1105]
[1749054381325,3.75265693,2647.6,2647.5,0.8145]
[1749054381689,3.75265693,2647.6,2647.5,9.1025]
[1749054382395,3.75265693,2647.6,2647.5,8.288]
[1749054382794,1.6339,2647.5,2647.0,1.76649702]
[1749054383131,1.6339,2647.5,2647.1,8.289]
[1749054383302,3.75265693,2647.4,2647.2,8.289]
[1749054383502,3.75265693,2647.4,2647.3,8.288]
[1749054383708,3.75265693,2647.4,2647.3,1.798]
[1749054383909,3.75265693,2647.4,2647.3,8.287]
[1749054384337,3.75265693,2647.4,2646.4,16.0]
[1749054384629,3.75265693,2647.4,2646.8,16.0]
[1749054384930,3.75265693,2647.4,2646.9,10.899852]
[1749054385225,3.75265693,2647.4,2647.1,10.0]
[1749054385427,3.75265693,2647.4,2647.2,11.798]
[1749054385633,3.75265693,2647.4,2647.2,1.798]
[1749054387444,3.75265693,2647.4,2647.3,14.627]
[1749054387624,5.28665693,2647.4,2647.3,16.425]
[1749054387824,5.81532262,2647.4,2647.3,9.943]
[1749054388027,5.81532262,2647.4,2647.3,16.425]
[1749054388403,5.81532262,2647.4,2647.3,8.145]
[1749054388829,5.81532262,2647.4,2647.3,9.943]
[1749054389068,6.36532262,2647.4,2647.3,9.943]
[1749054389619,5.81532262,2647.4,2647.3,9.943]
[1749054390353,5.28665693,2647.4,2647.3,9.943]
[1749054390558,5.83665693,2647.4,2647.3,8.145]
[1749054390720,5.83665693,2647.4,2647.3,9.943]
[1749054390921,5.83665693,2647.4,2647.3,8.145]
[1749054391160,3.75265693,2647.1,2647.0,6.482]
[1749054391313,3.75265693,2647.3,2647.0,16.426]
[1749054391822,5.06932262,2647.3,2647.0,16.426]
[1749054392877,3.75265693,2647.3,2647.0,16.426]
[1749054393472,1.5722,2647.2,2647.0,8.146]
[1749054393675,3.75265693,2647.3,2647.1,8.28]
[1749054394457,3.75265693,2647.3,2647.2,8.28]
[1749054395342,3.75265693,2647.3,2647.0,8.146]
[1749054395858,3.75265693,2647.3,2647.1,8.281]
[1749054398464,3.75265693,2647.2,2647.1,8.281]
[1749054401588,3.75265693,2647.2,2647.1,24.281]
[1749054401893,3.75265693,2647.2,2647.1,32.862226]
[1749054402098,3.75265693,2647.2,2647.1,31.065707]
[1749054402788,3.75265693,2647.2,2647.1,29.267707]
[1749054403262,3.13993437,2647.2,2647.1,33.0272953]
[1749054403870,3.13993437,2647.2,2647.1,32.2758103]
[1749054404181,3.13993437,2647.2,2647.1,22.033222]
[1749054404384,3.13993437,2647.2,2647.1,25.2227]
[1749054404548,3.13993437,2647.2,2647.1,17.40626554]
[1749054405042,3.13993437,2647.2,2647.1,12.268704]
[1749054405248,3.13993437,2647.2,2647.1,10.0]
[1749054405583,3.13993437,2647.2,2646.8,20.898596]
[1749054405748,3.13993437,2647.2,2647.0,14.404418]
[1749054405954,3.13993437,2647.2,2646.8,17.522807]
[1749054406261,3.13993437,2647.2,2647.1,6.482]
[1749054406884,3.13993437,2647.2,2647.1,8.86575]
[1749054407565,3.13993437,2647.2,2647.1,34.79975]
[1749054407765,3.13993437,2647.2,2647.1,38.279725]
[1749054408792,3.13993437,2647.2,2647.1,35.895975]
[1749054409297,3.13993437,2647.2,2647.1,27.625975]
[1749054409468,3.13993437,2647.2,2647.1,37.92078]
[1749054409868,3.13993437,2647.2,2647.1,29.65078]
[1749054410096,3.13993437,2647.2,2647.1,37.92078]
[1749054412588,3.13993437,2647.2,2647.1,29.65078]